[Event "Titled Tuesday Blitz August 02 Early 2022"]
[White "Sevian, Samuel"]
[Black "Fedoseev, Vladimir"]
[WhiteFideId "2040506"]
[BlackFideId "24130737"]
[WhiteElo "2692"]
[BlackElo "2726"]
[Result "1/2-1/2"]
[Round "10"]
[TimeControl "180+1"]
[Date "2022.08.02"]
[WhiteClock "0:00:03"]
[BlackClock "0:00:05"]

1. c4 {[%clk 0:03:00]}  e5 {[%clk 0:02:59]} 2. Nc3 {[%clk 0:03:01]}  Nc6 {[%clk 0:02:58]} 3. Nf3 {[%clk 0:03:01]}  Nf6 {[%clk 0:02:55]} 4. g3 {[%clk 0:03:01]}  Bb4 {[%clk 0:02:55]} 5. Bg2 {[%clk 0:03:01]}  Bxc3 {[%clk 0:02:53]} 6. bxc3 {[%clk 0:03:02]}  O-O {[%clk 0:02:51]} 7. O-O {[%clk 0:03:02]}  e4 {[%clk 0:02:48]} 8. Ng5 {[%clk 0:02:57]}  Re8 {[%clk 0:02:48]} 9. f3 {[%clk 0:02:58]}  e3 {[%clk 0:02:36]} 10. dxe3 {[%clk 0:02:58]}  h6 {[%clk 0:02:29]} 11. Nh3 {[%clk 0:02:57]}  d6 {[%clk 0:02:26]} 12. Nf4 {[%clk 0:02:56]}  Ne5 {[%clk 0:02:23]} 13. c5 {[%clk 0:02:56]}  dxc5 {[%clk 0:02:20]} 14. e4 {[%clk 0:02:56]}  b6 {[%clk 0:02:12]} 15. Qc2 {[%clk 0:02:53]}  Ba6 {[%clk 0:02:06]} 16. g4 {[%clk 0:02:47]}  Qe7 {[%clk 0:01:57]} 17. Be3 {[%clk 0:02:32]}  Rad8 {[%clk 0:01:52]} 18. Rad1 {[%clk 0:02:32]}  Rxd1 {[%clk 0:01:42]} 19. Rxd1 {[%clk 0:02:32]}  Bc4 {[%clk 0:01:40]} 20. h4 {[%clk 0:02:26]}  Rd8 {[%clk 0:01:37]} 21. Rf1 {[%clk 0:01:35]}  g5 {[%clk 0:01:29]} 22. Nh3 {[%clk 0:01:30]}  Nh7 {[%clk 0:01:28]} 23. Nf2 {[%clk 0:01:06]}  Nf8 {[%clk 0:01:22]} 24. hxg5 {[%clk 0:01:02]}  hxg5 {[%clk 0:01:22]} 25. Nh1 {[%clk 0:01:02]}  Ne6 {[%clk 0:01:15]} 26. Ng3 {[%clk 0:01:02]}  f6 {[%clk 0:01:07]} 27. Nf5 {[%clk 0:00:56]}  Qd7 {[%clk 0:01:07]} 28. Bh3 {[%clk 0:00:49]}  Kf7 {[%clk 0:00:56]} 29. Kf2 {[%clk 0:00:46]}  Rh8 {[%clk 0:00:45]} 30. Rh1 {[%clk 0:00:46]}  Ng6 {[%clk 0:00:45]} 31. Qc1 {[%clk 0:00:31]}  Ngf4 {[%clk 0:00:41]} 32. Bg2 {[%clk 0:00:31]}  Rxh1 {[%clk 0:00:23]} 33. Qxh1 {[%clk 0:00:32]}  Kg8 {[%clk 0:00:24]} 34. Bf1 {[%clk 0:00:20]}  Qh7 {[%clk 0:00:19]} 35. Qxh7+ {[%clk 0:00:16]}  Kxh7 {[%clk 0:00:20]} 36. a3 {[%clk 0:00:16]}  Ng6 {[%clk 0:00:18]} 37. Ke1 {[%clk 0:00:13]}  Kg8 {[%clk 0:00:18]} 38. Bf2 {[%clk 0:00:12]}  Kf7 {[%clk 0:00:17]} 39. Bg3 {[%clk 0:00:13]}  Ne5 {[%clk 0:00:12]} 40. Ne3 {[%clk 0:00:13]}  Bb3 {[%clk 0:00:11]} 41. Nd5 {[%clk 0:00:11]}  Bxd5 {[%clk 0:00:09]} 42. exd5 {[%clk 0:00:12]}  Nf4 {[%clk 0:00:10]} 43. e4 {[%clk 0:00:12]}  Ke7 {[%clk 0:00:10]} 44. Kd2 {[%clk 0:00:12]}  Kd6 {[%clk 0:00:10]} 45. Ke3 {[%clk 0:00:13]}  Neg6 {[%clk 0:00:10]} 46. Bb5 {[%clk 0:00:13]}  Ke5 {[%clk 0:00:10]} 47. Bd7 {[%clk 0:00:07]}  Ne7 {[%clk 0:00:10]} 48. c4 {[%clk 0:00:06]}  Ng6 {[%clk 0:00:10]} 49. Bc8 {[%clk 0:00:03]}  Nh4 {[%clk 0:00:08]} 50. Bf2 {[%clk 0:00:01]}  Nhg2+ {[%clk 0:00:08]} 51. Kd2 {[%clk 0:00:02]}  Kd6 {[%clk 0:00:08]} 52. Bg3 {[%clk 0:00:02]}  Ke5 {[%clk 0:00:08]} 53. Bf2 {[%clk 0:00:02]}  Kd6 {[%clk 0:00:08]} 54. Bg3 {[%clk 0:00:03]}  Nh4 {[%clk 0:00:07]} 55. Ke3 {[%clk 0:00:03]}  Ke5 {[%clk 0:00:07]} 56. Bf2 {[%clk 0:00:03]}  Nhg6 {[%clk 0:00:06]} 57. Bg3 {[%clk 0:00:03]}  Nh4 {[%clk 0:00:05]} 1/2-1/2


[Site "https://www.chess.com"]

[Event "Titled Tuesday Blitz August 02 Early 2022"]
[White "Shimanov, Aleksandr"]
[Black "Piesik, Piotr"]
[WhiteFideId "4198603"]
[BlackFideId "1136194"]
[WhiteElo "2605"]
[BlackElo "2242"]
[Result "0-1"]
[Round "10"]
[TimeControl "180+1"]
[Date "2022.08.02"]
[WhiteClock "0:00:03"]
[BlackClock "0:00:04"]

1. b3 {[%clk 0:03:00]}  d5 {[%clk 0:02:58]} 2. Bb2 {[%clk 0:03:00]}  c5 {[%clk 0:02:58]} 3. e3 {[%clk 0:02:59]}  a6 {[%clk 0:02:58]} 4. Nf3 {[%clk 0:02:46]}  Nc6 {[%clk 0:02:58]} 5. d4 {[%clk 0:02:46]}  Bg4 {[%clk 0:02:55]} 6. dxc5 {[%clk 0:02:42]}  e6 {[%clk 0:02:53]} 7. a3 {[%clk 0:02:41]}  a5 {[%clk 0:02:51]} 8. h3 {[%clk 0:02:32]}  Bh5 {[%clk 0:02:48]} 9. Bb5 {[%clk 0:02:28]}  Nf6 {[%clk 0:02:47]} 10. g4 {[%clk 0:02:26]}  Bg6 {[%clk 0:02:47]} 11. Ne5 {[%clk 0:02:25]}  Qc7 {[%clk 0:02:47]} 12. b4 {[%clk 0:01:58]}  axb4 {[%clk 0:02:42]} 13. axb4 {[%clk 0:01:58]}  Rxa1 {[%clk 0:02:42]} 14. Bxa1 {[%clk 0:01:59]}  Nd7 {[%clk 0:02:41]} 15. Nxd7 {[%clk 0:01:58]}  Qxd7 {[%clk 0:02:38]} 16. Nd2 {[%clk 0:01:57]}  f6 {[%clk 0:02:37]} 17. h4 {[%clk 0:01:47]}  Be7 {[%clk 0:02:36]} 18. h5 {[%clk 0:01:47]}  Bf7 {[%clk 0:02:36]} 19. Nb3 {[%clk 0:01:20]}  O-O {[%clk 0:02:28]} 20. f4 {[%clk 0:01:12]}  e5 {[%clk 0:02:25]} 21. f5 {[%clk 0:01:03]}  h6 {[%clk 0:02:23]} 22. O-O {[%clk 0:00:59]}  Rb8 {[%clk 0:02:18]} 23. Qe2 {[%clk 0:00:31]}  Qc7 {[%clk 0:02:16]} 24. Bc3 {[%clk 0:00:30]}  b6 {[%clk 0:02:15]} 25. Bxc6 {[%clk 0:00:30]}  Qxc6 {[%clk 0:02:15]} 26. b5 {[%clk 0:00:30]}  Qc8 {[%clk 0:02:07]} 27. c6 {[%clk 0:00:30]}  Ra8 {[%clk 0:02:07]} 28. Ra1 {[%clk 0:00:30]}  Rxa1+ {[%clk 0:02:06]} 29. Bxa1 {[%clk 0:00:30]}  Qa8 {[%clk 0:02:04]} 30. Bc3 {[%clk 0:00:25]}  Bd6 {[%clk 0:02:02]} 31. Be1 {[%clk 0:00:25]}  Qa4 {[%clk 0:01:58]} 32. Bf2 {[%clk 0:00:22]}  Bc7 {[%clk 0:01:55]} 33. Kg2 {[%clk 0:00:22]}  Kf8 {[%clk 0:01:55]} 34. Kg1 {[%clk 0:00:17]}  Ke8 {[%clk 0:01:54]} 35. Be1 {[%clk 0:00:16]}  Qe4 {[%clk 0:01:48]} 36. Bd2 {[%clk 0:00:07]}  Qxc2 {[%clk 0:01:45]} 37. Nc1 {[%clk 0:00:08]}  Qb1 {[%clk 0:01:38]} 38. Qd3 {[%clk 0:00:08]}  Qb2 {[%clk 0:01:34]} 39. Kf2 {[%clk 0:00:05]}  Bd6 {[%clk 0:01:20]} 40. Ke1 {[%clk 0:00:05]}  Bb4 {[%clk 0:01:09]} 41. Ne2 {[%clk 0:00:02]}  Bxd2+ {[%clk 0:01:07]} 42. Qxd2 {[%clk 0:00:03]}  Qxb5 {[%clk 0:01:07]} 43. Qc3 {[%clk 0:00:02]}  Qc5 {[%clk 0:01:03]} 44. Qa1 {[%clk 0:00:02]}  Qxc6 {[%clk 0:01:02]} 45. Qa7 {[%clk 0:00:03]}  Kf8 {[%clk 0:01:01]} 46. Qb8+ {[%clk 0:00:02]}  Be8 {[%clk 0:01:00]} 47. Kd2 {[%clk 0:00:02]}  Kg8 {[%clk 0:00:51]} 48. Nc1 {[%clk 0:00:02]}  d4 {[%clk 0:00:47]} 49. exd4 {[%clk 0:00:02]}  exd4 {[%clk 0:00:48]} 50. Ne2 {[%clk 0:00:03]}  Kh7 {[%clk 0:00:45]} 51. Qf4 {[%clk 0:00:03]}  Qg2 {[%clk 0:00:39]} 52. Qxd4 {[%clk 0:00:03]}  Bb5 {[%clk 0:00:39]} 53. Qe3 {[%clk 0:00:03]}  Qxg4 {[%clk 0:00:38]} 54. Nd4 {[%clk 0:00:03]}  Bc4 {[%clk 0:00:33]} 55. Kc3 {[%clk 0:00:03]}  b5 {[%clk 0:00:33]} 56. Kb4 {[%clk 0:00:03]}  Qxh5 {[%clk 0:00:33]} 57. Qe4 {[%clk 0:00:03]}  Qg5 {[%clk 0:00:31]} 58. Ne6 {[%clk 0:00:04]}  Qd2+ {[%clk 0:00:28]} 59. Kc5 {[%clk 0:00:04]}  Kg8 {[%clk 0:00:16]} 60. Nd4 {[%clk 0:00:04]}  Bf7 {[%clk 0:00:08]} 61. Nxb5 {[%clk 0:00:04]}  Qc1+ {[%clk 0:00:06]} 62. Kb6 {[%clk 0:00:04]}  Qc8 {[%clk 0:00:06]} 63. Nd4 {[%clk 0:00:04]}  Qd8+ {[%clk 0:00:06]} 64. Kc5 {[%clk 0:00:04]}  Qc7+ {[%clk 0:00:06]} 65. Nc6 {[%clk 0:00:04]}  Kf8 {[%clk 0:00:05]} 66. Kd4 {[%clk 0:00:02]}  Qd6+ {[%clk 0:00:05]} 67. Ke3 {[%clk 0:00:03]}  Bd5 {[%clk 0:00:06]} 68. Qb4 {[%clk 0:00:03]}  Qxb4 {[%clk 0:00:05]} 69. Nxb4 {[%clk 0:00:04]}  Bb7 {[%clk 0:00:05]} 70. Kf4 {[%clk 0:00:05]}  Kf7 {[%clk 0:00:06]} 71. Nd3 {[%clk 0:00:05]}  g6 {[%clk 0:00:06]} 72. fxg6+ {[%clk 0:00:05]}  Kxg6 {[%clk 0:00:07]} 73. Nf2 {[%clk 0:00:05]}  h5 {[%clk 0:00:07]} 74. Kg3 {[%clk 0:00:04]}  Kg5 {[%clk 0:00:07]} 75. Nh3+ {[%clk 0:00:05]}  Kf5 {[%clk 0:00:07]} 76. Kh4 {[%clk 0:00:05]}  Bf3 {[%clk 0:00:07]} 77. Kg3 {[%clk 0:00:06]}  Bg4 {[%clk 0:00:07]} 78. Nf2 {[%clk 0:00:06]}  Kg5 {[%clk 0:00:08]} 79. Ne4+ {[%clk 0:00:07]}  Kf5 {[%clk 0:00:08]} 80. Nf2 {[%clk 0:00:07]}  Be2 {[%clk 0:00:08]} 81. Nh3 {[%clk 0:00:06]}  Ke4 {[%clk 0:00:08]} 82. Nf2+ {[%clk 0:00:03]}  Ke3 {[%clk 0:00:06]} 83. Nh3 {[%clk 0:00:04]}  f5 {[%clk 0:00:06]} 84. Kh4 {[%clk 0:00:03]}  f4 {[%clk 0:00:05]} 85. Kg5 {[%clk 0:00:04]}  f3 {[%clk 0:00:05]} 86. Nf4 {[%clk 0:00:02]}  f2 {[%clk 0:00:05]} 87. Nd5+ {[%clk 0:00:02]}  Kd2 {[%clk 0:00:05]} 88. Ne3 {[%clk 0:00:03]}  Kxe3 {[%clk 0:00:04]} 0-1


[Site "https://www.chess.com"]

[Event "Titled Tuesday Blitz August 02 Early 2022"]
[White "Shipov, Sergei"]
[Black "Costachi, Mihnea"]
[WhiteFideId "4113624"]
[BlackFideId "1217518"]
[WhiteElo "2772"]
[BlackElo "2477"]
[Result "0-1"]
[Round "10"]
[TimeControl "180+1"]
[Date "2022.08.02"]
[WhiteClock "0:02:07"]
[BlackClock "0:02:48"]

1. d4 {[%clk 0:03:00]}  Nf6 {[%clk 0:02:58]} 2. c4 {[%clk 0:03:00]}  c6 {[%clk 0:02:57]} 3. Nc3 {[%clk 0:03:00]}  d5 {[%clk 0:02:57]} 4. Nf3 {[%clk 0:02:59]}  a6 {[%clk 0:02:56]} 5. h3 {[%clk 0:02:59]}  g6 {[%clk 0:02:54]} 6. cxd5 {[%clk 0:02:52]}  cxd5 {[%clk 0:02:54]} 7. Bf4 {[%clk 0:02:53]}  Nc6 {[%clk 0:02:54]} 8. e3 {[%clk 0:02:53]}  Bg7 {[%clk 0:02:55]} 9. Bd3 {[%clk 0:02:54]}  O-O {[%clk 0:02:55]} 10. O-O {[%clk 0:02:50]}  b5 {[%clk 0:02:56]} 11. Rc1 {[%clk 0:02:49]}  Bb7 {[%clk 0:02:56]} 12. a4 {[%clk 0:02:50]}  b4 {[%clk 0:02:56]} 13. Nb1 {[%clk 0:02:50]}  Qb6 {[%clk 0:02:56]} 14. Nbd2 {[%clk 0:02:49]}  Rfc8 {[%clk 0:02:56]} 15. Nb3 {[%clk 0:02:47]}  Nd7 {[%clk 0:02:56]} 16. Qe2 {[%clk 0:02:24]}  Na5 {[%clk 0:02:55]} 17. Nfd2 {[%clk 0:02:23]}  Nxb3 {[%clk 0:02:54]} 18. Nxb3 {[%clk 0:02:23]}  e5 {[%clk 0:02:54]} 19. a5 {[%clk 0:02:22]}  Qd8 {[%clk 0:02:48]} 20. dxe5 {[%clk 0:02:21]}  Nxe5 {[%clk 0:02:49]} 21. Bxe5 {[%clk 0:02:17]}  Bxe5 {[%clk 0:02:49]} 22. Nc5 {[%clk 0:02:17]}  Qe7 {[%clk 0:02:49]} 23. Rfd1 {[%clk 0:02:07]}  Rxc5 {[%clk 0:02:48]} 0-1


[Site "https://www.chess.com"]

[Event "Titled Tuesday Blitz August 02 Early 2022"]
[White "Srihari L R"]
[Black "Janaszak, Dawid"]
[WhiteFideId "46617116"]
[BlackFideId "1119206"]
[WhiteElo "2170"]
[BlackElo "2199"]
[Result "1-0"]
[Round "10"]
[TimeControl "180+1"]
[Date "2022.08.02"]
[WhiteClock "0:00:35"]
[BlackClock "0:00:53"]

1. Nf3 {[%clk 0:03:00]}  d5 {[%clk 0:02:58]} 2. c4 {[%clk 0:02:59]}  c6 {[%clk 0:02:58]} 3. d4 {[%clk 0:02:59]}  Nf6 {[%clk 0:02:58]} 4. g3 {[%clk 0:02:59]}  a6 {[%clk 0:02:58]} 5. Bg2 {[%clk 0:02:58]}  Bg4 {[%clk 0:02:56]} 6. Ne5 {[%clk 0:02:57]}  Bf5 {[%clk 0:02:55]} 7. cxd5 {[%clk 0:02:55]}  cxd5 {[%clk 0:02:56]} 8. Nc3 {[%clk 0:02:54]}  e6 {[%clk 0:02:55]} 9. f3 {[%clk 0:02:50]}  Bd6 {[%clk 0:02:52]} 10. e4 {[%clk 0:02:41]}  Bg6 {[%clk 0:02:52]} 11. Nxg6 {[%clk 0:02:40]}  hxg6 {[%clk 0:02:52]} 12. e5 {[%clk 0:02:40]}  Nc6 {[%clk 0:02:39]} 13. exd6 {[%clk 0:02:38]}  Qxd6 {[%clk 0:02:40]} 14. O-O {[%clk 0:02:34]}  O-O-O {[%clk 0:02:38]} 15. a3 {[%clk 0:02:33]}  Nh5 {[%clk 0:02:34]} 16. Ne2 {[%clk 0:02:24]}  f6 {[%clk 0:02:25]} 17. g4 {[%clk 0:02:17]}  g5 {[%clk 0:02:21]} 18. gxh5 {[%clk 0:02:15]}  Rxh5 {[%clk 0:02:22]} 19. Ng3 {[%clk 0:02:14]}  Rh4 {[%clk 0:02:21]} 20. Be3 {[%clk 0:02:14]}  Rdh8 {[%clk 0:02:21]} 21. Kf2 {[%clk 0:02:13]}  Rxh2 {[%clk 0:02:21]} 22. Rh1 {[%clk 0:02:01]}  R8h3 {[%clk 0:02:20]} 23. Ne2 {[%clk 0:01:59]}  Rxh1 {[%clk 0:01:56]} 24. Bxh1 {[%clk 0:01:58]}  Ne7 {[%clk 0:01:46]} 25. Bg2 {[%clk 0:01:55]}  Rh2 {[%clk 0:01:44]} 26. Qc2+ {[%clk 0:01:54]}  Kd7 {[%clk 0:01:43]} 27. Rh1 {[%clk 0:01:54]}  Nf5 {[%clk 0:01:42]} 28. Qc1 {[%clk 0:01:33]}  Rxh1 {[%clk 0:01:14]} 29. Qxh1 {[%clk 0:01:28]}  Qb6 {[%clk 0:01:14]} 30. b4 {[%clk 0:01:22]}  Qb5 {[%clk 0:01:13]} 31. Bh3 {[%clk 0:01:16]}  Nh4 {[%clk 0:01:02]} 32. Qd1 {[%clk 0:00:58]}  a5 {[%clk 0:00:59]} 33. bxa5 {[%clk 0:00:51]}  Qxa5 {[%clk 0:01:00]} 34. Qb3 {[%clk 0:00:47]}  b5 {[%clk 0:00:59]} 35. Nc3 {[%clk 0:00:43]}  Kc6 {[%clk 0:00:59]} 36. Bxe6 {[%clk 0:00:42]}  b4 {[%clk 0:00:51]} 37. axb4 {[%clk 0:00:38]}  Qa1 {[%clk 0:00:52]} 38. Qxd5+ {[%clk 0:00:38]}  Kb6 {[%clk 0:00:53]} 39. Qb5+ {[%clk 0:00:35]}  Kc7 {[%clk 0:00:53]} 40. Nd5+ {[%clk 0:00:35]} 1-0


[Site "https://www.chess.com"]

[Event "Titled Tuesday Blitz August 02 Early 2022"]
[White "Tanenbaum, Zachary"]
[Black "Ovchinnikov, Vsevolod"]
[WhiteFideId "2060850"]
[BlackFideId "24176842"]
[WhiteElo "2175"]
[BlackElo "2376"]
[Result "1/2-1/2"]
[Round "10"]
[TimeControl "180+1"]
[Date "2022.08.02"]
[WhiteClock "0:00:14"]
[BlackClock "0:00:25"]

1. b3 {[%clk 0:03:00]}  d5 {[%clk 0:02:59]} 2. Bb2 {[%clk 0:03:01]}  Nf6 {[%clk 0:02:59]} 3. Nf3 {[%clk 0:03:00]}  Bf5 {[%clk 0:02:57]} 4. e3 {[%clk 0:03:00]}  e6 {[%clk 0:02:57]} 5. Be2 {[%clk 0:02:59]}  Nbd7 {[%clk 0:02:56]} 6. d3 {[%clk 0:02:50]}  h6 {[%clk 0:02:56]} 7. Nbd2 {[%clk 0:02:49]}  Bd6 {[%clk 0:02:53]} 8. c4 {[%clk 0:02:47]}  Qe7 {[%clk 0:02:45]} 9. O-O {[%clk 0:02:33]}  O-O {[%clk 0:02:44]} 10. Re1 {[%clk 0:02:32]}  c6 {[%clk 0:02:37]} 11. a3 {[%clk 0:02:11]}  e5 {[%clk 0:02:33]} 12. b4 {[%clk 0:02:08]}  Rfe8 {[%clk 0:02:26]} 13. Qb3 {[%clk 0:02:01]}  Bh7 {[%clk 0:02:14]} 14. Rac1 {[%clk 0:01:58]}  e4 {[%clk 0:02:01]} 15. dxe4 {[%clk 0:01:41]}  dxe4 {[%clk 0:02:01]} 16. Nd4 {[%clk 0:01:40]}  Ne5 {[%clk 0:01:48]} 17. c5 {[%clk 0:01:35]}  Bc7 {[%clk 0:01:48]} 18. h3 {[%clk 0:01:33]}  a6 {[%clk 0:01:12]} 19. Rcd1 {[%clk 0:01:31]}  Rad8 {[%clk 0:01:05]} 20. Nc4 {[%clk 0:01:13]}  Nfd7 {[%clk 0:00:47]} 21. Qc3 {[%clk 0:00:55]}  Qg5 {[%clk 0:00:38]} 22. Nd6 {[%clk 0:00:37]}  Bxd6 {[%clk 0:00:38]} 23. cxd6 {[%clk 0:00:38]}  Nd3 {[%clk 0:00:21]} 24. Bxd3 {[%clk 0:00:34]}  exd3 {[%clk 0:00:22]} 25. Nf3 {[%clk 0:00:28]}  Qf6 {[%clk 0:00:21]} 26. Rd2 {[%clk 0:00:08]}  Qxc3 {[%clk 0:00:19]} 27. Bxc3 {[%clk 0:00:08]}  Nb6 {[%clk 0:00:19]} 28. Ne5 {[%clk 0:00:06]}  Rxe5 {[%clk 0:00:12]} 29. Bxe5 {[%clk 0:00:07]}  Nc4 {[%clk 0:00:12]} 30. Bc3 {[%clk 0:00:07]}  Nxd2 {[%clk 0:00:12]} 31. Bxd2 {[%clk 0:00:08]}  Rxd6 {[%clk 0:00:13]} 32. f3 {[%clk 0:00:08]}  f5 {[%clk 0:00:13]} 33. Rc1 {[%clk 0:00:08]}  Kf7 {[%clk 0:00:13]} 34. Rc5 {[%clk 0:00:08]}  Ke6 {[%clk 0:00:13]} 35. Kf2 {[%clk 0:00:08]}  g5 {[%clk 0:00:13]} 36. g4 {[%clk 0:00:08]}  Bg6 {[%clk 0:00:13]} 37. Rc3 {[%clk 0:00:06]}  Rd7 {[%clk 0:00:13]} 38. Rc5 {[%clk 0:00:06]}  Rd5 {[%clk 0:00:09]} 39. Rc3 {[%clk 0:00:05]}  h5 {[%clk 0:00:07]} 40. gxf5+ {[%clk 0:00:05]}  Rxf5 {[%clk 0:00:08]} 41. e4 {[%clk 0:00:03]}  Rf7 {[%clk 0:00:06]} 42. Ke3 {[%clk 0:00:03]}  g4 {[%clk 0:00:05]} 43. hxg4 {[%clk 0:00:03]}  hxg4 {[%clk 0:00:06]} 44. fxg4 {[%clk 0:00:04]}  Rh7 {[%clk 0:00:06]} 45. Rxd3 {[%clk 0:00:04]}  Rh3+ {[%clk 0:00:07]} 46. Kd4 {[%clk 0:00:05]}  Rxd3+ {[%clk 0:00:07]} 47. Kxd3 {[%clk 0:00:05]}  Ke5 {[%clk 0:00:07]} 48. Bc3+ {[%clk 0:00:06]}  Kf4 {[%clk 0:00:08]} 49. Kd4 {[%clk 0:00:05]}  Bxe4 {[%clk 0:00:07]} 50. Bd2+ {[%clk 0:00:06]}  Kf3 {[%clk 0:00:07]} 51. g5 {[%clk 0:00:07]}  Bd5 {[%clk 0:00:07]} 52. Kc5 {[%clk 0:00:07]}  b5 {[%clk 0:00:05]} 53. g6 {[%clk 0:00:07]}  Ke4 {[%clk 0:00:06]} 54. g7 {[%clk 0:00:06]}  Kf5 {[%clk 0:00:06]} 55. Kb6 {[%clk 0:00:06]}  Kg6 {[%clk 0:00:06]} 56. Bc3 {[%clk 0:00:07]}  Kf7 {[%clk 0:00:06]} 57. Kxa6 {[%clk 0:00:07]}  Kg8 {[%clk 0:00:06]} 58. Kb6 {[%clk 0:00:07]}  Bg2 {[%clk 0:00:07]} 59. Kc5 {[%clk 0:00:07]}  Bf3 {[%clk 0:00:07]} 60. Kd6 {[%clk 0:00:08]}  Bg2 {[%clk 0:00:07]} 61. Ke6 {[%clk 0:00:08]}  Bh1 {[%clk 0:00:08]} 62. Kf6 {[%clk 0:00:08]}  Bg2 {[%clk 0:00:09]} 63. Kg5 {[%clk 0:00:09]}  Bh1 {[%clk 0:00:10]} 64. Kf4 {[%clk 0:00:09]}  Bd5 {[%clk 0:00:10]} 65. Ke3 {[%clk 0:00:10]}  Bh1 {[%clk 0:00:11]} 66. Kf2 {[%clk 0:00:10]}  Bd5 {[%clk 0:00:12]} 67. Kg3 {[%clk 0:00:10]}  Bc4 {[%clk 0:00:12]} 68. Bd4 {[%clk 0:00:11]}  Bd5 {[%clk 0:00:12]} 69. Be5 {[%clk 0:00:11]}  Bc4 {[%clk 0:00:12]} 70. Kf4 {[%clk 0:00:11]}  Bd5 {[%clk 0:00:13]} 71. Ke3 {[%clk 0:00:12]}  Bh1 {[%clk 0:00:13]} 72. Kd4 {[%clk 0:00:12]}  Bg2 {[%clk 0:00:14]} 73. Kc3 {[%clk 0:00:12]}  Bh1 {[%clk 0:00:14]} 74. Kd3 {[%clk 0:00:13]}  Bg2 {[%clk 0:00:15]} 75. Bf6 {[%clk 0:00:13]}  Bh1 {[%clk 0:00:15]} 76. Kd4 {[%clk 0:00:13]}  Bg2 {[%clk 0:00:16]} 77. Kc5 {[%clk 0:00:14]}  Bh1 {[%clk 0:00:16]} 78. Bc3 {[%clk 0:00:13]}  Bg2 {[%clk 0:00:17]} 79. Bb2 {[%clk 0:00:13]}  Bh1 {[%clk 0:00:17]} 80. Kd6 {[%clk 0:00:12]}  Bg2 {[%clk 0:00:18]} 81. Ke6 {[%clk 0:00:13]}  Bh1 {[%clk 0:00:18]} 82. Kf5 {[%clk 0:00:13]}  Bg2 {[%clk 0:00:19]} 83. Kf4 {[%clk 0:00:13]}  Bh1 {[%clk 0:00:20]} 84. Kg3 {[%clk 0:00:13]}  Bd5 {[%clk 0:00:20]} 85. Kf2 {[%clk 0:00:14]}  Bh1 {[%clk 0:00:20]} 86. Ke3 {[%clk 0:00:13]}  Bd5 {[%clk 0:00:21]} 87. Kd4 {[%clk 0:00:14]}  Bh1 {[%clk 0:00:22]} 88. Kc5 {[%clk 0:00:13]}  Bg2 {[%clk 0:00:22]} 89. Kb6 {[%clk 0:00:13]}  Bh1 {[%clk 0:00:23]} 90. Ka5 {[%clk 0:00:14]}  Bg2 {[%clk 0:00:23]} 91. a4 {[%clk 0:00:14]}  bxa4 {[%clk 0:00:24]} 92. Kxa4 {[%clk 0:00:15]}  Bf1 {[%clk 0:00:25]} 93. Ka5 {[%clk 0:00:15]}  Bb5 {[%clk 0:00:25]} 94. Kb6 {[%clk 0:00:15]}  Ba4 {[%clk 0:00:25]} 95. Kc5 {[%clk 0:00:14]}  Bb5 {[%clk 0:00:25]} 1/2-1/2


[Site "https://www.chess.com"]

[Event "Titled Tuesday Blitz August 02 Early 2022"]
[White "Vlassov, Nikolai"]
[Black "Hafiz, Arif Abdul"]
[WhiteFideId "4103360"]
[BlackFideId "7104227"]
[WhiteElo "2324"]
[BlackElo "2198"]
[Result "0-1"]
[Round "10"]
[TimeControl "180+1"]
[Date "2022.08.02"]
[WhiteClock "0:00:31"]
[BlackClock "0:00:48"]

1. e4 {[%clk 0:03:00]}  Nc6 {[%clk 0:03:00]} 2. d4 {[%clk 0:03:00]}  d5 {[%clk 0:03:00]} 3. Nc3 {[%clk 0:02:59]}  dxe4 {[%clk 0:03:00]} 4. d5 {[%clk 0:02:59]}  Nb8 {[%clk 0:03:01]} 5. Bf4 {[%clk 0:02:58]}  Nf6 {[%clk 0:02:55]} 6. Nb5 {[%clk 0:02:55]}  Na6 {[%clk 0:02:53]} 7. c4 {[%clk 0:02:56]}  e6 {[%clk 0:02:47]} 8. Qa4 {[%clk 0:02:55]}  Bb4+ {[%clk 0:02:44]} 9. Nc3+ {[%clk 0:02:48]}  Bd7 {[%clk 0:02:40]} 10. Qb3 {[%clk 0:02:48]}  O-O {[%clk 0:02:32]} 11. O-O-O {[%clk 0:02:48]}  exd5 {[%clk 0:02:28]} 12. cxd5 {[%clk 0:02:42]}  Bd6 {[%clk 0:02:26]} 13. Bxd6 {[%clk 0:02:34]}  cxd6 {[%clk 0:02:27]} 14. Bxa6 {[%clk 0:02:34]}  bxa6 {[%clk 0:02:26]} 15. Nge2 {[%clk 0:02:34]}  Rb8 {[%clk 0:02:24]} 16. Qa3 {[%clk 0:02:34]}  Qb6 {[%clk 0:02:23]} 17. Rd4 {[%clk 0:02:28]}  Rfc8 {[%clk 0:02:16]} 18. Rhd1 {[%clk 0:02:19]}  Ng4 {[%clk 0:02:14]} 19. R1d2 {[%clk 0:01:11]}  Nxf2 {[%clk 0:02:12]} 20. Kb1 {[%clk 0:00:58]}  e3 {[%clk 0:02:12]} 21. Rc2 {[%clk 0:00:51]}  Bf5 {[%clk 0:02:11]} 22. Ra4 {[%clk 0:00:41]}  Nd1 {[%clk 0:01:35]} 23. Rxa6 {[%clk 0:00:36]}  Qxb2+ {[%clk 0:01:15]} 24. Qxb2 {[%clk 0:00:31]}  Rxb2+ {[%clk 0:01:16]} 25. Kc1 {[%clk 0:00:31]}  Rxc2+ {[%clk 0:00:48]} 26. Kxd1 {[%clk 0:00:31]}  R2xc3 {[%clk 0:00:47]} 27. Nxc3 {[%clk 0:00:31]}  Rxc3 {[%clk 0:00:48]} 28. Rxa7 {[%clk 0:00:31]}  Bg4+ {[%clk 0:00:48]} 0-1


[Site "https://www.chess.com"]

[Event "Titled Tuesday Blitz August 02 Early 2022"]
[White "Agasarov, Benik"]
[Black "Xu, Yi"]
[WhiteFideId "13314823"]
[BlackFideId "8605564"]
[WhiteElo "2738"]
[BlackElo "2471"]
[Result "0-1"]
[Round "11"]
[TimeControl "180+1"]
[Date "2022.08.02"]
[WhiteClock "0:01:07"]
[BlackClock "0:01:02"]

1. e4 {[%clk 0:03:00]}  c6 {[%clk 0:02:57]} 2. d4 {[%clk 0:02:58]}  d5 {[%clk 0:02:57]} 3. exd5 {[%clk 0:02:56]}  cxd5 {[%clk 0:02:57]} 4. Bd3 {[%clk 0:02:56]}  Nc6 {[%clk 0:02:55]} 5. c3 {[%clk 0:02:57]}  g6 {[%clk 0:02:56]} 6. h3 {[%clk 0:02:53]}  Bf5 {[%clk 0:02:55]} 7. Bxf5 {[%clk 0:02:50]}  gxf5 {[%clk 0:02:55]} 8. Nf3 {[%clk 0:02:51]}  e6 {[%clk 0:02:55]} 9. Bf4 {[%clk 0:02:48]}  Bd6 {[%clk 0:02:53]} 10. Bxd6 {[%clk 0:02:48]}  Qxd6 {[%clk 0:02:53]} 11. Nbd2 {[%clk 0:02:49]}  Nf6 {[%clk 0:02:52]} 12. a4 {[%clk 0:02:47]}  Rg8 {[%clk 0:02:52]} 13. O-O {[%clk 0:02:42]}  Ne4 {[%clk 0:02:50]} 14. Kh1 {[%clk 0:02:36]}  O-O-O {[%clk 0:02:47]} 15. Nxe4 {[%clk 0:02:33]}  fxe4 {[%clk 0:02:44]} 16. Nh2 {[%clk 0:02:34]}  f5 {[%clk 0:02:43]} 17. a5 {[%clk 0:02:30]}  a6 {[%clk 0:02:40]} 18. b4 {[%clk 0:02:29]}  Na7 {[%clk 0:02:38]} 19. Rc1 {[%clk 0:02:26]}  Kb8 {[%clk 0:02:35]} 20. Qh5 {[%clk 0:02:24]}  Rd7 {[%clk 0:02:28]} 21. Rg1 {[%clk 0:02:21]}  Nb5 {[%clk 0:02:26]} 22. Nf1 {[%clk 0:02:16]}  Rc7 {[%clk 0:02:24]} 23. Ne3 {[%clk 0:02:11]}  Rgc8 {[%clk 0:02:21]} 24. c4 {[%clk 0:02:06]}  dxc4 {[%clk 0:02:13]} 25. Rgd1 {[%clk 0:01:58]}  Nxd4 {[%clk 0:01:40]} 26. Nc2 {[%clk 0:01:53]}  e5 {[%clk 0:01:40]} 27. Nxd4 {[%clk 0:01:51]}  exd4 {[%clk 0:01:40]} 28. Qxf5 {[%clk 0:01:52]}  d3 {[%clk 0:01:23]} 29. Qxe4 {[%clk 0:01:51]}  d2 {[%clk 0:01:23]} 30. Rc3 {[%clk 0:01:48]}  Re7 {[%clk 0:01:12]} 31. Qb1 {[%clk 0:01:46]}  Rce8 {[%clk 0:01:10]} 32. Rg3 {[%clk 0:01:06]}  Re1+ {[%clk 0:01:07]} 33. Kh2 {[%clk 0:01:06]}  Rxd1 {[%clk 0:01:02]} 34. Qxd1 {[%clk 0:01:07]}  Re1 {[%clk 0:01:02]} 0-1


[Site "https://www.chess.com"]